bitfinex-derivatives/quotes_SOLF0:USTF0_20241103
["timestamp","ask_amount","ask_price","bid_price","bid_amount"]
[1730651401608,6.69413383,160.6,160.56,3.115]
[1730651401817,6.69413383,160.6,160.51,36.10176111]
[1730651401818,6.69413383,160.57,160.51,36.10176111]
[1730651402004,6.69413383,160.53,160.47,1.2984]
[1730651402208,6.69413383,160.53,160.48,3.1166]
[1730651402915,3.1159,160.52,160.47,1.2984]
[1730651403108,6.69413383,160.53,160.47,1.2984]
[1730651403308,10.53413383,160.55,160.48,6.69413383]
[1730651403612,10.53413383,160.55,160.52,3.1159]
[1730651404928,6.69413383,160.57,160.5,6.69413383]
[1730651405218,60.98343277,160.67,160.48,1.3745]
[1730651405219,6.69413383,160.6,160.51,6.69413383]
[1730651405514,67.6775666,160.67,160.59,6.69413383]
[1730651405817,67.6775666,160.67,160.53,6.69413383]
[1730651405818,6.69413383,160.61,160.53,6.69413383]
[1730651406009,9.80843383,160.61,160.57,3.1149]
[1730651406318,1.2818,160.66,160.52,36.0952549]
[1730651406319,6.69413383,160.59,160.52,36.0952549]
[1730651407106,3.1148,160.58,160.55,3.1153]
[1730651407309,6.69413383,160.59,160.52,36.0952549]
[1730651408112,6.69413383,160.59,160.49,6.69413383]
[1730651409016,3.1152,160.56,160.52,3.1157]
[1730651409205,3.1152,160.56,160.49,6.69413383]
[1730651409411,6.69413383,160.55,160.48,1.3745]
[1730651409615,3.1159,160.53,160.49,3.1165]
[1730651411815,3.116,160.52,160.48,3.1165]
[1730651412115,3.84,160.55,160.48,3.1165]
[1730651412312,1.36,160.54,160.42,1.2942]
[1730651412826,3.1163,160.51,160.42,1.2942]
[1730651413213,1.36,160.54,160.42,1.2942]
[1730651413424,3.1165,160.5,160.46,3.1169]
[1730651413612,6.9565,160.5,160.46,3.1169]
[1730651413812,3.117,160.47,160.43,3.1175]
[1730651414013,3.84,160.5,160.36,10.47664143]
[1730651414215,1.3213,160.49,160.36,10.47664143]
[1730651414422,1.3213,160.49,160.4,3.1181]
[1730651414719,1.3213,160.49,160.36,10.47664143]
[1730651414925,1.3213,160.49,160.38,10.47664143]
[1730651415326,3.84,160.5,160.39,1.3522]
[1730651415519,3.84,160.5,160.39,2.744]
[1730651415719,3.1166,160.49,160.45,3.1171]
[1730651415923,6.9566,160.49,160.45,3.1171]
[1730651416117,3.84,160.49,160.39,1.3522]
[1730651416427,3.84,160.49,160.42,10.47664143]
[1730651416722,5.1613,160.53,160.43,1.3165]
[1730651416925,3.1163,160.5,160.46,3.1169]
[1730651417316,3.1162,160.51,160.46,3.1171]
[1730651417517,3.1162,160.51,160.43,1.3165]
[1730651418335,5.1613,160.53,160.44,3.1173]
[1730651418830,1.3222,160.52,160.44,3.1173]
[1730651419021,3.1173,160.45,160.41,3.118]
[1730651419614,3.1175,160.44,160.4,3.1181]
[1730651420930,3.118,160.42,160.38,3.1186]
[1730651421120,2.6591,160.46,160.35,1.3543]
[1730651421630,3.1181,160.41,160.37,3.1187]
[1730651422030,3.84,160.41,160.33,3.1196]
[1730651422219,1.3515,160.4,160.28,6.551]
[1730651423524,3.1193,160.35,160.31,3.1198]
[1730651424122,1.3716,160.39,160.28,1.3567]
[1730651424316,3.1195,160.34,160.3,3.12]
[1730651424521,11.84824143,160.39,160.23,10.47664143]
[1730651424522,3.84,160.36,160.23,10.47664143]
[1730651424722,3.1201,160.31,160.26,3.1209]
[1730651424917,3.84,160.3,160.26,3.1209]
[1730651425125,3.84,160.3,160.21,3.14749837]
[1730651425333,3.84,160.3,160.27,3.1206]
[1730651425530,3.84,160.3,160.2,14.31664143]
[1730651425923,3.84,160.3,160.25,3.1211]
[1730651425924,6.9604,160.3,160.25,3.1211]
[1730651426624,3.84,160.3,160.26,3.121]
[1730651427326,3.1203,160.3,160.25,3.1211]
[1730651427927,3.84,160.31,160.11,3.84]
[1730651428130,3.84,160.3,160.19,1.3229]
[1730651428331,3.84,160.3,160.2,1.3389]
[1730651428536,3.1205,160.29,160.24,3.1212]
[1730651428928,3.1205,160.29,160.2,1.3389]
[1730651430127,3.1207,160.28,160.12,3.84]
[1730651430438,3.84,160.27,160.17,2.7184]
[1730651430622,6.9604,160.29,160.17,6.5584]
[1730651430826,3.1204,160.29,160.17,6.5584]
[1730651431026,3.1204,160.29,160.24,3.1212]
[1730651431334,3.1204,160.29,160.17,6.5584]
[1730651432035,3.1204,160.29,160.11,16.78040612]
[1730651432036,3.1212,160.25,160.11,16.78040612]
[1730651432230,6.9612,160.25,160.16,1.3886]
[1730651432936,19.57150612,160.32,160.16,1.3886]
[1730651433135,3.84,160.31,160.22,3.1216]
[1730651433632,3.84,160.31,160.16,1.3886]
[1730651433835,3.84,160.3,160.16,1.3886]
[1730651434227,3.1207,160.28,160.16,1.3886]
[1730651434441,3.84,160.3,160.23,3.1214]
[1730651435241,3.1212,160.25,160.17,3.84]
[1730651435437,3.84,160.3,160.17,3.84]
[1730651435830,3.84,160.3,160.22,3.1216]
[1730651436641,6.99340454,160.3,160.17,3.84]
[1730651436829,6.99340454,160.3,160.16,1.3886]
[1730651437231,3.1217,160.23,160.19,3.1222]
[1730651438941,3.1218,160.22,160.18,3.1225]
[1730651439131,3.84,160.24,160.16,1.3886]
[1730651439443,3.84,160.24,160.21,3.1219]
[1730651440144,6.9614,160.24,160.2,3.122]
[1730651440343,6.9614,160.24,160.16,1.3886]
[1730651440547,3.84,160.24,160.16,1.3886]
[1730651441630,3.84,160.24,160.18,3.1225]
[1730651442548,3.1218,160.22,160.18,3.1225]
[1730651445039,3.84,160.26,160.16,1.3886]
[1730651445540,3.84,160.26,160.16,5.2286]
[1730651445748,3.1209,160.27,160.23,3.1215]
[1730651446246,3.84,160.28,160.16,5.2286]
[1730651446651,6.9607,160.28,160.24,3.1212]
[1730651447053,6.9607,160.28,160.16,5.2286]
[1730651447054,3.84,160.28,160.16,22.00900612]
[1730651448254,3.84,160.28,160.16,5.2286]
[1730651449350,3.121,160.26,160.23,3.1215]
[1730651449754,3.121,160.26,160.16,5.2286]
[1730651450051,3.121,160.26,160.22,3.1216]
[1730651450555,3.84,160.28,160.16,5.2286]
[1730651450856,3.84,160.28,160.17,1.14732014]
[1730651451449,10.49277845,160.27,160.16,1.3886]
[1730651451649,11.90857845,160.27,160.16,1.3886]
[1730651451850,3.1217,160.23,160.19,3.1222]
[1730651452454,3.1219,160.22,160.18,3.1225]
[1730651453247,3.1223,160.2,160.16,3.1228]
[1730651453450,3.1223,160.2,160.14,36.17816812]
[1730651453757,3.84,160.23,160.14,36.17816812]
[1730651453953,3.1225,160.19,160.16,3.1228]
[1730651454259,3.84,160.23,160.12,1.3147]
[1730651454553,3.84,160.23,159.95,18.67]
[1730651454554,10.49277845,160.21,160.04,13.60565465]
[1730651454855,10.49277845,160.21,160.09,1.14784926]
[1730651455058,3.1229,160.17,160.13,3.1235]
[1730651455259,14.33277845,160.18,160.05,1.3367]
[1730651455560,1.3995,160.17,160.06,1.14786841]
[1730651455759,3.1233,160.14,160.09,3.1242]
[1730651456461,3.1233,160.14,160.1,3.1239]
[1730651456767,3.1233,160.14,160.05,2.6671]
[1730651456768,3.84,160.13,160.05,2.6671]
[1730651457061,3.84,160.13,160.07,3.1245]
[1730651457266,3.84,160.13,160.05,2.6671]
[1730651457476,3.84,160.13,160.05,1.3367]
[1730651457672,3.84,160.13,160.09,3.1242]
[1730651457962,3.84,160.13,160.05,1.3367]
[1730651458173,3.84,160.13,160.09,3.1242]
[1730651458355,10.49277845,160.15,160.05,1.3367]
[1730651458356,3.1234,160.14,160.05,1.3367]
[1730651458872,3.1234,160.14,160.09,3.1241]
[1730651459363,3.1239,160.11,160.07,3.1246]
[1730651460264,3.1241,160.1,160.06,3.1248]
[1730651460654,14.33277845,160.15,160.06,3.1248]
[1730651460973,14.33277845,160.15,160.05,3.1249]
[1730651461170,10.49277845,160.12,160.05,3.1249]
[1730651461463,14.33277845,160.15,160.09,3.1243]
[1730651461962,14.33277845,160.15,160.02,1.3075]
[1730651462166,10.49277845,160.12,159.99,3.05869372]
[1730651462361,10.49277845,160.12,160.0,1.357]
[1730651462669,3.1249,160.06,160.0,1.357]
[1730651462862,3.84,160.07,159.96,1.3171]
[1730651463068,1.315,160.05,159.95,8.24564343]
[1730651463265,10.49277845,160.09,159.95,18.73842188]
[1730651464169,10.49277845,160.09,159.96,1.14853321]
[1730651464373,3.125,160.06,160.01,3.1257]
[1730651464574,10.49277845,160.09,159.96,1.14853321]
[1730651464776,3.84,160.09,159.97,1.317]
[1730651465275,3.84,160.09,159.97,2.46547029]
[1730651465466,6.9643,160.09,160.04,3.1251]
[1730651465667,3.84,160.09,160.04,3.1251]
[1730651465977,3.84,160.09,159.97,1.317]
[1730651466181,10.49277845,160.08,159.97,1.317]
[1730651466865,3.125,160.06,159.97,1.317]
[1730651467373,3.1247,160.07,160.02,3.1256]
[1730651468077,10.49277845,160.08,160.01,3.1258]
[1730651468265,10.49277845,160.08,159.95,5.197]
[1730651468664,3.1251,160.05,160.01,3.1258]
[1730651469066,3.84,160.04,160.01,3.1258]
[1730651469473,3.1255,160.03,159.95,5.197]
[1730651469781,3.84,160.04,159.95,5.197]
[1730651469782,5.2425,160.04,159.95,1.357]
[1730651470168,10.49277845,160.03,159.86,13.64480068]
[1730651470366,10.49277845,160.03,159.94,3.1271]
[1730651470563,10.49277845,160.03,159.86,10.49277845]
[1730651470763,10.49277845,159.97,159.87,1.14911359]
[1730651470973,3.84,159.96,159.92,3.1275]
[1730651471165,3.84,159.96,159.85,10.49277845]
[1730651471367,3.84,159.97,159.93,3.1273]
[1730651471569,3.84,159.97,159.85,10.49277845]
[1730651471780,3.84,159.97,159.86,1.14936847]
[1730651471971,3.84,159.98,159.86,1.14936847]
[1730651472172,3.84,159.98,159.88,10.49277845]
[1730651472373,3.84,159.98,159.89,1.3968]
[1730651472674,13.61847845,160.02,159.96,3.1267]
[1730651472879,10.49277845,160.02,159.9,2.7921]
[1730651473076,3.84,160.01,159.9,2.7921]
[1730651473271,3.1261,160.0,159.9,2.7921]
[1730651473576,3.1261,160.0,159.95,3.127]
[1730651474182,3.1264,159.99,159.93,3.1273]
[1730651474370,3.1264,159.99,159.9,2.7921]
[1730651474768,3.1264,159.99,159.91,1.14917659]
[1730651474971,3.1264,159.99,159.93,3.1273]
[1730651475169,3.1265,159.98,159.93,3.1273]
[1730651475373,10.49277845,160.0,159.92,3.1275]
[1730651475676,4.5333,159.97,159.92,3.1275]
[1730651475874,3.84,159.96,159.92,3.1275]
[1730651476272,3.84,159.96,159.85,14.33277845]
[1730651476471,3.84,159.96,159.93,3.1274]
[1730651476875,5.2465,159.97,159.88,3.1283]
[1730651477182,5.2465,159.97,159.89,3.86644992]
[1730651477381,3.1269,159.96,159.89,3.86644992]
[1730651477679,15.73927845,159.97,159.79,10.49277845]
[1730651477873,3.1272,159.95,159.83,1.3666]
[1730651478075,11.89927845,159.97,159.91,3.1278]
[1730651478269,3.84,159.95,159.91,3.1278]
[1730651478474,1.4065,159.97,159.85,10.49277845]
[1730651478684,1.4065,159.97,159.93,3.1273]
[1730651479188,3.84,159.98,159.87,1.3437]
[1730651479492,10.49277845,160.03,159.95,3.127]
[1730651479688,3.84,160.02,159.95,3.127]
[1730651480305,3.1266,159.98,159.93,3.1273]
[1730651480489,3.84,159.97,159.93,3.1273]
[1730651480995,3.84,159.97,159.94,3.1272]
[1730651481586,3.84,159.97,159.91,3.1277]
[1730651481790,3.84,159.97,159.87,1.3437]
[1730651482287,3.1272,159.94,159.89,3.128]
[1730651482596,3.1272,159.94,159.87,1.3437]
[1730651482800,16.81513356,160.0,159.87,1.3437]
[1730651482990,3.84,159.99,159.87,1.3437]
[1730651483390,3.1267,159.97,159.87,1.3437]
[1730651484085,3.1267,159.97,159.92,3.1275]
[1730651484695,3.1266,159.97,159.92,3.1275]
[1730651484893,2.6035,160.02,159.91,3.1277]
[1730651485093,6.4435,160.02,159.87,21.99883356]
[1730651485286,5.1367,160.02,159.88,1.14913984]
[1730651485488,1.4058,160.06,159.91,16.81513356]
[1730651485686,3.84,160.03,159.92,5.2327]
[1730651485888,3.84,160.03,159.93,1.3893]
[1730651486301,16.81513356,160.19,159.98,16.81513356]
[1730651486612,2.7606,160.2,160.02,16.81513356]
[1730651486900,3.1225,160.18,160.12,3.1236]
[1730651487104,3.84,160.19,160.12,3.1236]
[1730651487505,3.84,160.19,160.09,3.1242]
[1730651488010,3.84,160.19,160.05,3.84]
[1730651488199,3.84,160.19,160.11,3.1239]
[1730651488705,3.84,160.19,160.05,3.84]
[1730651489212,3.84,160.19,160.06,16.81513356]
[1730651489908,3.84,160.19,160.16,3.1229]
[1730651490211,3.84,160.19,160.13,3.1233]
[1730651490600,3.84,160.19,160.09,3.84]
[1730651491004,3.84,160.19,160.15,3.1229]
[1730651491604,3.84,160.19,160.12,3.1237]
[1730651491805,3.84,160.19,160.09,3.84]
[1730651491999,3.84,160.19,160.03,4.1717]
[1730651492206,3.1229,160.17,160.12,3.1237]
[1730651492510,3.84,160.19,160.05,3.84]
[1730651492999,1.4173,160.18,160.03,7.9917]
[1730651493198,3.1241,160.11,160.05,3.125]
[1730651493405,3.82,160.12,160.05,3.125]
[1730651494212,3.1241,160.1,160.05,3.125]
[1730651494508,6.9441,160.1,160.06,3.1249]
[1730651494700,3.82,160.1,160.06,3.1249]
[1730651495297,6.9441,160.1,160.06,3.1249]
[1730651495503,6.9441,160.1,159.99,6.487]
[1730651495701,6.9441,160.1,159.99,7.7947]
[1730651496104,6.9441,160.1,160.02,3.1256]
[1730651496407,3.82,160.1,159.99,7.7947]
[1730651496705,3.1245,160.09,160.04,3.1251]
[1730651497709,3.82,160.1,159.99,7.7947]
[1730651497911,3.82,160.12,159.99,7.7947]
[1730651498097,3.124,160.11,160.07,3.1246]
[1730651498305,1.3409,160.17,159.99,7.7947]
[1730651498501,3.82,160.16,160.02,16.81513356]
[1730651498712,3.1234,160.14,160.1,3.124]
[1730651498908,3.82,160.16,160.1,3.124]
[1730651499405,3.1233,160.15,160.04,3.82]
[1730651499612,3.1233,160.15,160.1,3.124]
[1730651500799,6.9433,160.15,160.1,3.124]
[1730651501001,3.82,160.18,160.06,16.81513356]
[1730651501202,3.82,160.18,160.07,2.7138]
[1730651501711,3.82,160.18,160.14,3.1231]
[1730651502517,3.82,160.18,160.08,1.3645]
[1730651503605,6.9427,160.18,160.13,3.1234]
[1730651504211,3.82,160.18,160.08,1.3645]
[1730651504815,3.82,160.18,160.15,3.1231]
[1730651505212,3.82,160.18,160.09,3.82]
[1730651505413,3.82,160.18,160.16,3.1228]
[1730651505807,3.82,160.18,160.09,3.82]
[1730651506007,3.82,160.18,160.08,5.1845]
[1730651506207,3.82,160.19,160.08,5.1845]
[1730651506803,3.1227,160.18,160.14,3.1233]
[1730651507002,3.82,160.19,160.08,5.1845]
[1730651507214,3.82,160.19,160.08,1.3645]
[1730651507412,3.82,160.19,160.1,3.1241]
[1730651507616,3.82,160.19,160.08,1.3645]
[1730651507820,3.123,160.16,160.1,3.1239]
[1730651508007,3.82,160.19,160.1,3.1239]
[1730651508211,3.82,160.19,160.08,1.3645]
[1730651508814,3.1233,160.15,160.11,3.1239]
[1730651509028,3.82,160.19,160.07,2.7138]
[1730651509029,3.82,160.19,160.07,1.3316]
[1730651509410,3.1235,160.14,160.1,3.1241]
[1730651511117,3.1232,160.15,160.11,3.1237]
[1730651511315,3.1232,160.15,160.07,1.3316]
[1730651511719,3.123,160.16,160.12,3.1236]
[1730651511915,3.82,160.19,160.07,1.3316]
[1730651512219,3.1233,160.15,160.11,3.1238]
[1730651514313,19.97652751,160.22,160.07,1.3316]
[1730651514524,3.1229,160.16,160.07,1.3316]
[1730651515013,3.1229,160.16,160.12,3.1236]
[1730651515326,3.1229,160.16,160.07,1.3316]
[1730651516017,3.1228,160.17,160.13,3.1234]
[1730651516723,3.82,160.21,160.13,3.1234]
[1730651517220,3.82,160.2,160.13,3.1234]
[1730651517723,3.123,160.16,160.13,3.1234]
[1730651518429,3.1232,160.15,160.12,3.1236]
[1730651518615,3.82,160.2,160.07,1.3316]
[1730651519414,3.82,160.2,160.03,1.4056]
[1730651519615,3.1238,160.12,160.09,3.1242]
[1730651520219,3.82,160.15,160.03,5.2256]
[1730651520414,3.1236,160.13,160.1,3.124]
[1730651521013,3.1236,160.13,160.03,5.2256]
[1730651521233,3.1236,160.13,160.09,3.1242]
[1730651521826,3.82,160.15,160.03,5.2256]
[1730651523815,3.1235,160.14,160.03,5.2256]
[1730651524220,3.1235,160.14,160.1,3.1239]
[1730651524425,3.82,160.15,160.03,1.4056]
[1730651524629,3.1239,160.12,160.05,3.1249]
[1730651524828,3.1239,160.12,160.03,5.2256]
[1730651525235,3.124,160.11,160.03,1.4056]
[1730651525431,1.3765,160.14,160.03,1.4056]
[1730651525735,1.3765,160.14,160.05,3.1249]
[1730651525926,3.1244,160.09,160.05,3.1249]
[1730651526524,3.1244,160.09,160.0,36.2045017]
[1730651526727,3.82,160.1,160.06,3.1248]
[1730651526931,1.3765,160.14,160.0,40.0245017]
[1730651527130,3.82,160.13,160.0,40.0245017]
[1730651527430,6.9436,160.13,160.09,3.1241]
[1730651527625,3.82,160.13,160.02,19.94083667]
[1730651527822,3.82,160.13,160.12,3.1237]
[1730651528026,2.7175,160.18,160.05,3.82]
[1730651528231,1.3091,160.18,160.06,18.09963356]
[1730651528440,4.4318,160.18,160.15,3.1231]
[1730651528748,4.4318,160.18,160.06,18.09963356]
[1730651529121,4.4318,160.18,160.14,3.1232]
[1730651529337,1.3091,160.18,160.06,18.09963356]
[1730651529524,3.82,160.2,160.06,18.09963356]
[1730651529927,6.9423,160.2,160.06,18.09963356]
[1730651530332,3.1224,160.19,160.15,3.123]
[1730651531336,1.4062,160.21,160.1,3.82]
[1730651531541,5.2262,160.21,160.16,3.1229]
[1730651531747,1.3232,160.23,160.11,1.3458]
[1730651532036,3.1216,160.23,160.11,2.7328]
[1730651532238,3.82,160.25,160.12,3.10727635]
[1730651532437,3.82,160.25,160.13,1.4015]
[1730651532627,3.82,160.25,160.19,3.1222]
[1730651533230,3.82,160.25,160.13,1.4015]
[1730651533537,3.82,160.25,160.08,3.82]
[1730651533839,3.1227,160.18,160.14,3.1233]
[1730651534044,3.1227,160.18,160.08,3.82]
[1730651534045,3.82,160.2,160.08,3.82]
[1730651534741,6.9423,160.2,160.09,16.81513356]
[1730651535135,3.82,160.2,160.09,16.81513356]
[1730651536029,64.97698313,160.24,160.09,16.81513356]
[1730651536232,61.15698313,160.24,160.13,16.81513356]
[1730651536426,61.15698313,160.24,160.14,10.93056224]
[1730651536625,61.15698313,160.24,160.14,7.8814]
[1730651536840,3.82,160.27,160.14,11.0699343]
[1730651537338,6.9409,160.27,160.22,3.1216]
[1730651537835,6.9409,160.27,160.14,11.0699343]
[1730651538037,3.82,160.27,160.17,16.81513356]
[1730651538436,3.82,160.27,160.14,7.8814]
[1730651538641,3.1219,160.22,160.14,7.8814]
[1730651538841,3.82,160.27,160.14,7.8814]
[1730651539331,3.1218,160.22,160.18,3.1224]
[1730651540533,3.82,160.26,160.14,2.6748]
[1730651540740,1.3197,160.25,160.11,3.82]
[1730651540935,1.3197,160.25,160.11,5.167]
[1730651541341,3.1223,160.2,160.15,3.123]
[1730651541646,3.82,160.21,160.11,3.82]
[1730651542040,3.82,160.21,160.12,1.2918]
[1730651542836,3.1225,160.19,160.12,1.2918]
[1730651543343,3.1225,160.19,160.14,3.1231]
[1730651543748,3.1223,160.2,160.12,1.2918]
[1730651543940,3.1223,160.2,160.16,3.1229]
[1730651544141,3.82,160.21,160.1,16.81513356]
[1730651544636,3.1224,160.19,160.15,3.123]
[1730651545445,3.1227,160.17,160.13,3.1234]
[1730651545747,1.2876,160.2,160.1,16.81513356]
[1730651546046,1.2876,160.2,160.09,14.31378532]
[1730651546245,3.1227,160.17,160.12,3.1236]
[1730651546443,3.1227,160.17,160.09,14.31378532]
[1730651546647,2.6531,160.2,160.09,14.31378532]
[1730651546848,3.1226,160.18,160.14,3.1232]
[1730651548247,3.1226,160.18,160.11,3.1238]
[1730651548443,3.1226,160.18,160.09,14.31378532]
[1730651549055,3.1226,160.18,160.14,3.1232]
[1730651550151,3.1231,160.16,160.12,3.1235]
[1730651550351,3.1231,160.16,160.07,1.4018]
[1730651550352,2.6531,160.2,160.07,1.4018]
[1730651550653,3.1237,160.13,160.09,3.1242]
[1730651550949,3.82,160.16,160.03,10.49378532]
[1730651551149,3.1244,160.09,160.04,3.1251]
[1730651551453,3.82,160.11,160.04,3.1251]
[1730651551951,3.82,160.11,160.01,10.49378532]
[1730651552153,2.7532,160.1,159.98,1.4143]
[1730651552656,2.7532,160.1,160.0,3.126]
[1730651552845,2.7532,160.1,159.92,16.79855869]
[1730651553046,2.7532,160.1,159.93,3.82]
[1730651553250,16.79855869,160.09,159.93,3.82]
[1730651553449,3.126,160.01,159.93,3.82]
[1730651554354,3.1267,159.97,159.9,2.7598]
[1730651554560,3.1267,159.97,159.92,3.1274]
[1730651555159,1.2866,160.0,159.86,1.4097]
[1730651555361,1.2866,160.0,159.87,3.82]
[1730651555756,1.2866,160.0,159.93,3.1273]
[1730651556255,3.1266,159.98,159.93,3.1273]
[1730651556468,1.2866,160.0,159.89,16.79855869]
[1730651556865,1.2866,160.0,159.92,3.1275]
[1730651557156,1.2866,160.0,159.89,16.79855869]
[1730651557361,1.3151,160.01,159.96,3.1267]
[1730651557554,1.3151,160.01,159.9,1.3249]
[1730651557955,4.4411,160.01,159.9,1.3249]
[1730651558261,1.3151,160.01,159.9,1.3249]
[1730651558464,1.3151,160.01,159.86,2.7921]
[1730651558972,3.82,160.0,159.86,2.7921]
[1730651559354,3.82,160.0,159.82,1.3249]
[1730651559555,3.1267,159.97,159.92,3.1275]
[1730651559864,3.1267,159.97,159.85,3.82]
[1730651560064,3.1269,159.96,159.91,3.1278]
[1730651560261,3.82,159.99,159.91,3.1278]
[1730651560465,3.82,159.99,159.85,3.82]
[1730651560671,1.3151,160.01,159.85,23.81716695]
[1730651560863,3.82,160.0,159.85,23.81716695]
[1730651561170,3.1266,159.98,159.93,3.1273]
[1730651561670,3.82,160.0,159.85,20.61855869]
[1730651561872,3.1269,159.96,159.92,3.1276]
[1730651562071,3.82,160.0,159.85,20.61855869]
[1730651562260,3.82,160.0,159.85,16.79855869]
[1730651562460,3.1268,159.97,159.85,16.79855869]
[1730651562772,3.82,160.0,159.85,16.79855869]
[1730651562969,3.1269,159.96,159.91,3.1277]
[1730651564076,3.1269,159.96,159.85,20.61855869]
[1730651564269,3.1269,159.96,159.92,3.1276]
[1730651564475,3.1264,159.99,159.85,20.61855869]
[1730651564662,3.1264,159.99,159.85,23.80809776]
[1730651564975,3.82,160.0,159.85,23.80809776]
[1730651565176,3.1263,159.99,159.94,3.127]
[1730651565374,3.1263,159.99,159.85,23.80809776]
[1730651565580,1.3151,160.01,159.89,16.79855869]
[1730651565780,3.82,160.03,159.9,5.2417]
[1730651566076,5.1528,160.03,159.91,1.3821]
[1730651566370,5.1528,160.03,159.95,3.127]
[1730651566559,5.1528,160.03,159.91,1.3821]
[1730651566761,3.1264,159.99,159.94,3.1271]
[1730651567375,3.82,159.98,159.87,1.3821]
[1730651567580,5.1371,159.97,159.87,1.3821]
[1730651567876,3.82,159.96,159.87,1.3821]
[1730651568083,3.1277,159.92,159.87,3.1284]
[1730651568286,2.7695,159.95,159.87,3.1284]
[1730651568671,3.1278,159.92,159.87,3.1284]
[1730651569178,3.1281,159.9,159.86,3.1287]
[1730651569570,3.82,159.91,159.83,2.53129176]
[1730651569867,6.948,159.91,159.83,1.3821]
[1730651570878,3.82,159.91,159.83,1.3821]
[1730651572467,2.7695,159.95,159.83,1.3821]
[1730651572774,1.3171,159.97,159.86,16.79855869]
[1730651572972,1.3171,159.97,159.87,3.82]
[1730651573179,1.3171,159.97,159.91,3.1278]
[1730651573965,1.3171,159.97,159.87,3.82]
[1730651574282,3.1274,159.93,159.89,3.1282]
[1730651574782,3.1272,159.94,159.87,3.1284]
[1730651574979,3.1272,159.94,159.84,3.82]
[1730651575579,3.1274,159.94,159.89,3.1281]
[1730651575779,1.3171,159.97,159.84,3.82]
[1730651575979,1.3171,159.97,159.88,3.1283]
[1730651576579,1.3171,159.97,159.92,3.1275]
[1730651576770,1.3171,159.97,159.83,1.3821]
[1730651576973,1.3171,159.97,159.84,1.14933706]
[1730651577276,3.1273,159.94,159.87,3.1284]
[1730651577475,3.1273,159.94,159.83,1.3821]
[1730651577676,3.1273,159.94,159.84,1.14933113]
[1730651577883,1.3171,159.97,159.84,1.14933113]
[1730651578091,1.3171,159.97,159.83,1.3821]
[1730651578582,3.1275,159.93,159.88,3.1282]
[1730651578796,3.1275,159.93,159.83,1.3821]
[1730651579484,3.1275,159.93,159.88,3.1282]
[1730651579984,3.1275,159.93,159.89,3.1282]
[1730651580178,3.1271,159.95,159.83,1.3821]
[1730651580579,1.3171,159.97,159.92,3.1274]
[1730651580879,1.387,160.02,159.87,3.82]
[1730651581087,3.82,160.01,159.88,2.7434]
[1730651581271,3.1263,159.99,159.95,3.1269]
[1730651581474,3.1263,159.99,159.88,2.7434]
[1730651581475,1.387,160.02,159.92,3.82]
[1730651581676,18.78576712,160.16,159.92,3.82]
[1730651581677,1.2916,160.09,159.93,1.3005]
[1730651581884,3.125,160.06,159.93,18.09905869]
[1730651582094,1.3439,160.13,159.97,16.79855869]
[1730651582288,3.1241,160.1,160.05,3.1249]
[1730651582500,3.82,160.12,159.98,6.5634]
[1730651582784,3.82,160.12,159.93,1.3005]
[1730651582785,39.36855869,160.12,159.93,18.09905869]
[1730651583089,39.36855869,160.12,159.93,5.1205]